bitfinex/quotes_SOLUSD_20241229
["timestamp","ask_amount","ask_price","bid_price","bid_amount"]
[1735457078588,9.91672473,196.38,196.35,44.8]
[1735457078918,9.91672473,196.37,196.35,44.8]
[1735457079619,9.91672473,196.38,196.35,44.8]
[1735457080031,9.91672473,196.37,196.35,44.8]
[1735457084321,9.91672473,196.36,196.35,44.8]
[1735457087700,1.6104,196.4,196.35,44.8]
[1735457087906,9.91672473,196.36,196.35,44.8]
[1735457088325,9.91672473,196.36,196.31,45.56380713]
[1735457088549,9.91672473,196.34,196.31,45.56380713]
[1735457096047,9.91672473,196.35,196.31,45.56380713]
[1735457097231,9.91672473,196.34,196.31,45.56380713]
[1735457097715,9.91672473,196.33,196.31,45.56380713]
[1735457100237,9.91672473,196.34,196.31,45.56380713]
[1735457100617,1.6104,196.4,196.31,45.56380713]
[1735457100815,9.91672473,196.35,196.31,45.56380713]
[1735457104738,1.5357,196.45,196.32,23.776884]
[1735457104941,9.91672473,196.39,196.33,45.56373709]
[1735457105443,9.91672473,196.38,196.33,45.56373709]
[1735457106243,1.5357,196.45,196.33,45.56373709]
[1735457106428,9.91672473,196.38,196.33,45.56373709]
[1735457111148,1.5357,196.45,196.34,78.49360873]
[1735457111334,9.91672473,196.42,196.36,33.69360873]
[1735457111648,1.5357,196.45,196.37,0.76354045]
[1735457111954,9.91672473,196.41,196.37,45.56354045]
[1735457112545,9.91672473,196.4,196.37,45.56354045]
[1735457113048,9.91672473,196.41,196.37,45.56354045]
[1735457114550,9.91672473,196.42,196.37,45.56354045]
[1735457116151,9.91672473,196.41,196.37,45.56354045]
[1735457118869,9.91672473,196.42,196.37,45.56354045]
[1735457119260,9.91672473,196.41,196.37,45.56354045]
[1735457119461,1.5357,196.45,196.38,68.576884]
[1735457119631,9.91672473,196.41,196.39,45.5635224]
[1735457121484,1.5357,196.45,196.39,45.5635224]
[1735457121756,9.91672473,196.43,196.39,45.5635224]
[1735457125858,1.5678,196.49,196.39,45.5635224]
[1735457126093,9.91672473,196.44,196.39,45.5635224]
[1735457130273,1.5678,196.49,196.39,45.5635224]
[1735457130467,9.91672473,196.43,196.39,45.5635224]
[1735457132559,9.91672473,196.4,196.39,44.8]
[1735457132875,9.91672473,196.4,196.35,44.8]
[1735457133166,9.91672473,196.36,196.35,44.8]
[1735457134277,9.91672473,196.37,196.35,44.8]
[1735457135759,9.91672473,196.38,196.35,44.8]
[1735457141678,9.91672473,196.39,196.35,44.8]
[1735457143280,6.4702,196.45,196.38,64.8]
[1735457143594,9.91672473,196.42,196.39,45.56361981]
[1735457149682,9.91672473,196.4,196.39,44.8]
[1735457150190,9.91672473,196.4,196.38,44.8]
[1735457150688,9.91672473,196.39,196.38,44.8]
[1735457159692,9.91672473,196.39,196.35,20.0]
[1735457159890,9.91672473,196.38,196.35,64.8]
[1735457160806,9.91672473,196.37,196.35,64.8]
[1735457161299,9.91672473,196.37,196.35,44.8]
[1735457164680,9.91672473,196.38,196.35,44.8]
[1735457165703,1.5256,196.4,196.35,44.8]
[1735457165901,9.91672473,196.38,196.35,44.8]
[1735457166407,7.9958,196.45,196.35,44.8]
[1735457166602,9.91672473,196.41,196.36,0.76370617]
[1735457167110,9.91672473,196.4,196.36,45.56370617]
[1735457167309,7.9958,196.45,196.36,45.56370617]
[1735457167506,9.91672473,196.41,196.36,45.56370617]
[1735457167703,9.91672473,196.4,196.36,45.56370617]
[1735457167903,7.9958,196.45,196.36,45.56370617]
[1735457168084,9.91672473,196.4,196.36,45.56370617]
[1735457168617,9.91672473,196.41,196.36,45.56370617]
[1735457172631,9.91672473,196.4,196.36,45.56370617]
[1735457173603,9.91672473,196.38,196.36,44.8]
[1735457177027,7.9958,196.45,196.36,44.8]
[1735457177224,9.91672473,196.4,196.36,44.8]
[1735457177533,9.91672473,196.41,196.36,44.8]
[1735457178923,7.9958,196.45,196.36,44.8]
[1735457179110,9.91672473,196.41,196.36,44.8]
[1735457182434,9.91672473,196.4,196.36,44.8]
[1735457184206,7.9958,196.45,196.36,44.8]
[1735457184608,9.91672473,196.41,196.36,44.8]
[1735457184808,9.91672473,196.41,196.37,0.76363094]
[1735457186046,9.91672473,196.42,196.37,45.56363094]
[1735457186937,7.9958,196.45,196.37,45.56363094]
[1735457187243,7.9958,196.45,196.38,23.776884]
[1735457187244,9.91672473,196.42,196.38,23.776884]
[1735457187926,8.0161473,196.48,196.4,9.91672473]
[1735457188126,9.91672473,196.44,196.38,44.8]
[1735457188322,9.91672473,196.44,196.39,23.776884]
[1735457189047,9.91672473,196.43,196.39,23.776884]
[1735457190040,9.91672473,196.43,196.39,68.576884]
[1735457192024,9.91672473,196.42,196.39,68.576884]
[1735457193627,9.91672473,196.41,196.39,44.8]
[1735457193836,9.91672473,196.4,196.39,44.8]
[1735457194343,9.91672473,196.4,196.36,20.0]
[1735457194552,9.91672473,196.4,196.37,23.776884]
[1735457194743,9.91672473,196.41,196.37,68.576884]
[1735457196946,9.91672473,196.42,196.37,68.576884]
[1735457198827,9.91672473,196.41,196.37,68.576884]
[1735457205767,9.91672473,196.42,196.37,68.576884]
[1735457209165,8.0161473,196.48,196.37,69.34054457]
[1735457209469,9.91672473,196.43,196.37,68.576884]
[1735457210767,9.91672473,196.43,196.37,69.34045558]
[1735457211462,7.7591,196.49,196.37,69.34045558]
[1735457211669,9.91672473,196.44,196.37,79.25718031]
[1735457213287,9.91672473,196.44,196.37,69.34045558]
[1735457213484,9.91672473,196.44,196.37,79.25718031]
[1735457216665,9.91672473,196.44,196.41,68.576884]
[1735457217890,7.7591,196.49,196.41,68.576884]
[1735457218280,9.91672473,196.45,196.41,68.576884]
[1735457218954,9.91672473,196.44,196.41,68.576884]
[1735457219752,9.91672473,196.43,196.41,68.576884]
[1735457220466,9.91672473,196.43,196.41,44.8]
[1735457223390,9.91672473,196.44,196.41,44.8]
[1735457224492,7.7591,196.49,196.41,44.8]
[1735457224988,7.7591,196.49,196.42,23.776884]
[1735457225193,9.91672473,196.45,196.42,68.576884]
[1735457225665,7.7591,196.49,196.42,68.576884]
[1735457225992,9.91672473,196.45,196.42,68.576884]
[1735457229101,8.0161473,196.53,196.45,23.776884]
[1735457229403,9.91672473,196.49,196.45,68.576884]
[1735457233081,9.91672473,196.5,196.45,68.576884]
[1735457235586,9.91672473,196.49,196.45,68.576884]
[1735457235789,7.9514,196.54,196.45,68.576884]
[1735457235990,9.91672473,196.5,196.45,68.576884]
[1735457245999,9.91672473,196.49,196.45,68.576884]
[1735457246509,9.91672473,196.49,196.45,44.8]
[1735457247027,9.91672473,196.49,196.46,23.776884]
[1735457247691,9.91672473,196.49,196.45,44.8]
[1735457247895,9.91672473,196.46,196.45,44.8]
[1735457252636,16.51772473,196.46,196.39,44.8]
[1735457252935,9.91672473,196.41,196.39,44.8]
[1735457253840,9.91672473,196.42,196.37,20.0]
[1735457254148,9.91672473,196.41,196.37,64.8]
[1735457255023,9.91672473,196.41,196.38,23.776884]
[1735457256338,9.91672473,196.39,196.31,54.716724]
[1735457256548,9.91672473,196.39,196.33,9.91672473]
[1735457256741,9.91672473,196.39,196.35,64.8]
[1735457257045,9.91672473,196.39,196.35,44.8]
[1735457257331,9.91672473,196.4,196.35,44.8]
[1735457257640,9.91672473,196.4,196.36,23.776884]
[1735457260719,9.91672473,196.39,196.36,68.576884]
[1735457271950,6.601,196.46,196.36,68.576884]
[1735457272151,9.91672473,196.39,196.36,68.576884]
[1735457272749,9.91672473,196.4,196.36,68.576884]
[1735457273061,9.91672473,196.41,196.36,68.576884]
[1735457273219,9.91672473,196.44,196.4,68.576884]
[1735457276270,9.91672473,196.43,196.4,68.576884]
[1735457276552,9.91672473,196.42,196.4,68.576884]
[1735457284065,9.91672473,196.43,196.4,68.576884]
[1735457284989,9.91672473,196.44,196.42,44.8]
[1735457289585,39.66689892,196.5,196.42,44.8]
[1735457289883,9.91672473,196.46,196.42,44.8]
[1735457290386,9.91672473,196.45,196.42,44.8]
[1735457290974,9.91672473,196.44,196.42,44.8]
[1735457291475,9.91672473,196.43,196.4,44.8]
[1735457294863,9.91672473,196.42,196.4,44.8]
[1735457300382,9.91672473,196.42,196.38,20.0]
[1735457300558,9.91672473,196.4,196.38,44.8]
[1735457301169,9.91672473,196.39,196.38,44.8]
[1735457301656,9.91672473,196.4,196.38,44.8]
[1735457302393,9.91672473,196.41,196.38,44.8]
[1735457304479,6.3849,196.45,196.39,68.576884]
[1735457304682,9.91672473,196.43,196.39,68.576884]
[1735457305597,9.91672473,196.42,196.39,68.576884]
[1735457306319,9.91672473,196.43,196.39,68.576884]
[1735457308193,11.85207062,196.49,196.39,68.576884]
[1735457308366,9.91672473,196.43,196.39,68.576884]
[1735457314889,9.91672473,196.42,196.39,44.8]
[1735457315093,9.91672473,196.41,196.39,44.8]
[1735457315393,9.91672473,196.4,196.35,44.8]
[1735457315580,9.91672473,196.4,196.36,23.776884]
[1735457316900,19.86790881,196.49,196.36,68.576884]
[1735457317081,9.91672473,196.41,196.36,68.576884]
[1735457317993,9.91672473,196.43,196.39,64.8]
[1735457319100,8.0193,196.49,196.39,64.8]
[1735457319302,9.91672473,196.43,196.39,64.8]
[1735457320803,9.91672473,196.42,196.39,64.8]
[1735457327310,9.91672473,196.43,196.39,64.8]
[1735457328296,8.0193,196.49,196.4,68.576884]
[1735457328605,9.91672473,196.45,196.4,68.576884]
[1735457330820,8.0193,196.49,196.4,68.576884]
[1735457331002,9.91672473,196.45,196.4,68.576884]
[1735457333015,9.91672473,196.45,196.43,20.0]
[1735457336414,8.0193,196.49,196.44,68.576884]
[1735457336617,9.91672473,196.45,196.41,20.0]
[1735457337516,9.91672473,196.45,196.42,23.776884]
[1735457340099,9.91672473,196.45,196.42,68.576884]
[1735457347322,9.91672473,196.46,196.42,68.576884]
[1735457355734,9.91672473,196.46,196.42,44.8]
[1735457356232,9.91672473,196.44,196.41,20.0]
[1735457356436,9.91672473,196.42,196.34,54.71672473]
[1735457356738,9.91672473,196.41,196.34,54.71672473]
[1735457356918,9.91672473,196.41,196.38,88.576884]
[1735457360850,9.91672473,196.4,196.38,64.8]
[1735457361142,9.91672473,196.4,196.38,44.8]
[1735457364652,9.91672473,196.39,196.38,44.8]
[1735457369655,9.91672473,196.39,196.36,20.0]
[1735457373245,9.91672473,196.39,196.36,64.8]
[1735457376965,9.41672473,196.39,196.36,64.8]
[1735457378960,9.91672473,196.38,196.36,64.8]
[1735457382652,9.91672473,196.38,196.36,44.8]
[1735457385268,9.91672473,196.38,196.35,64.8]
[1735457386873,1.5773,196.47,196.36,68.576884]
[1735457387079,9.91672473,196.42,196.39,64.8]
[1735457387452,9.91672473,196.43,196.39,64.8]
[1735457387657,1.5773,196.47,196.4,68.576884]
[1735457387877,9.91672473,196.44,196.4,68.576884]
[1735457389382,9.91672473,196.43,196.42,20.0]
[1735457390781,9.91672473,196.43,196.4,44.8]
[1735457390982,9.91672473,196.42,196.4,44.8]
[1735457391583,9.91672473,196.43,196.4,44.8]
[1735457397398,9.91672473,196.42,196.4,44.8]
[1735457400196,9.91672473,196.41,196.34,46.3755]
[1735457400388,9.91672473,196.4,196.34,46.3755]
[1735457400696,9.91672473,196.4,196.35,23.776884]
[1735457401099,9.91672473,196.4,196.38,64.8]
[1735457404000,9.91672473,196.39,196.35,68.576884]
[1735457404174,9.91672473,196.36,196.35,44.8]
[1735457404377,9.91672473,196.37,196.3,55.48057316]
[1735457404691,9.91672473,196.36,196.34,64.8]
[1735457405480,9.91672473,196.35,196.34,64.8]
[1735457405790,9.91672473,196.35,196.3,45.56386394]
[1735457405999,9.91672473,196.35,196.33,44.8]
[1735457407067,9.91672473,196.34,196.33,20.0]
[1735457408200,9.91672473,196.35,196.34,20.0]
[1735457409907,9.91672473,196.35,196.31,44.8]
[1735457410201,9.91672473,196.32,196.31,44.8]
[1735457411175,9.91672473,196.33,196.31,44.8]
[1735457411371,9.91672473,196.33,196.29,20.0]
[1735457411696,9.91672473,196.33,196.3,68.576884]
[1735457415399,39.66689892,196.4,196.3,68.576884]
[1735457415577,8.0478,196.41,196.34,68.576884]
[1735457416112,8.02299636,196.46,196.34,68.576884]
[1735457416113,7.7458,196.46,196.38,68.576884]
[1735457416324,9.91672473,196.41,196.38,68.576884]
[1735457417102,7.7458,196.46,196.38,68.576884]
[1735457417307,9.91672473,196.4,196.38,68.576884]
[1735457417804,9.91672473,196.39,196.38,68.576884]
[1735457418932,9.91672473,196.39,196.38,44.8]
[1735457421206,9.91672473,196.39,196.35,44.8]
[1735457421393,9.91672473,196.38,196.36,68.576884]
[1735457421593,9.91672473,196.37,196.36,68.576884]
[1735457421801,9.91672473,196.38,196.36,68.576884]
[1735457423682,9.91672473,196.38,196.36,44.8]
[1735457425010,9.91672473,196.39,196.38,20.0]
[1735457430424,9.91672473,196.39,196.38,64.8]
[1735457431508,9.91672473,196.39,196.38,44.8]
[1735457432227,11.42032473,196.39,196.38,44.8]
[1735457432426,11.42032473,196.39,196.3,44.8]
[1735457432595,9.91672473,196.32,196.3,44.8]
[1735457433102,9.91672473,196.32,196.31,23.776884]
[1735457435017,9.91672473,196.33,196.31,68.576884]
[1735457435804,9.91672473,196.35,196.33,64.8]
[1735457435997,9.91672473,196.37,196.36,20.0]
[1735457436190,9.91672473,196.37,196.36,64.8]
[1735457436808,9.91672473,196.37,196.36,68.576884]
[1735457440714,1.5036,196.44,196.36,44.8]
[1735457441015,9.91672473,196.37,196.36,44.8]
[1735457445523,9.91672473,196.37,196.32,23.776884]
[1735457445825,9.91672473,196.35,196.34,20.0]
[1735457447122,9.91672473,196.35,196.34,44.8]
[1735457450822,9.91672473,196.35,196.28,44.8]
[1735457450823,11.51832473,196.35,196.28,44.8]
[1735457451031,9.91672473,196.29,196.28,44.8]
[1735457451414,1.6016,196.35,196.25,20.0]
[1735457451726,9.91672473,196.3,196.26,68.576884]
[1735457453029,9.91672473,196.3,196.29,20.0]
[1735457457536,9.91672473,196.3,196.29,64.8]
[1735457461349,1.6016,196.35,196.29,64.8]
[1735457461555,9.91672473,196.3,196.29,64.8]
[1735457465239,1.6016,196.35,196.29,20.0]
[1735457465533,9.91672473,196.3,196.26,68.576884]
[1735457465733,9.91672473,196.28,196.26,68.576884]
[1735457465934,1.6016,196.35,196.29,20.0]
[1735457466146,9.91672473,196.3,196.29,20.0]
[1735457466754,9.91672473,196.3,196.26,68.576884]
[1735457466937,6.5961,196.33,196.26,44.8]
[1735457467138,9.91672473,196.29,196.26,44.8]
[1735457467338,9.91672473,196.29,196.27,23.776884]
[1735457468664,9.91672473,196.28,196.27,23.776884]
[1735457471066,1.6016,196.35,196.3,64.8]
[1735457471371,9.91672473,196.31,196.3,43.776884]
[1735457471537,9.91672473,196.32,196.3,88.576884]
[1735457471738,6.5961,196.37,196.3,88.576884]
[1735457471939,9.91672473,196.32,196.3,88.576884]
[1735457474371,9.91672473,196.31,196.3,88.576884]
[1735457477063,9.91672473,196.31,196.3,64.8]
[1735457477669,9.91672473,196.31,196.3,44.8]
[1735457481571,9.91672473,196.31,196.27,64.8]
[1735457481764,9.91672473,196.28,196.27,64.8]
[1735457486862,9.91672473,196.28,196.27,20.0]
[1735457487579,9.91672473,196.28,196.25,44.8]
[1735457487765,9.91672473,196.26,196.25,44.8]
[1735457491179,9.91672473,196.26,196.21,44.8]
[1735457491360,9.91672473,196.22,196.21,44.8]
[1735457491874,9.91672473,196.22,196.21,68.576884]
[1735457492071,9.91672473,196.23,196.21,68.576884]
[1735457494169,9.91672473,196.22,196.21,44.8]
[1735457494379,9.91672473,196.22,196.17,44.8]
[1735457494560,9.91672473,196.18,196.17,44.8]
[1735457495064,9.91672473,196.18,196.17,48.60285559]
[1735457495772,9.91672473,196.18,196.17,44.8]
[1735457498082,7.5872,196.23,196.16,68.576884]
[1735457498387,9.91672473,196.2,196.16,68.576884]
[1735457498586,9.91672473,196.2,196.19,20.0]
[1735457499863,9.91672473,196.21,196.19,20.0]
[1735457500175,9.91672473,196.22,196.19,64.8]
[1735457501589,9.91672473,196.21,196.19,64.8]
[1735457501990,7.5872,196.28,196.2,68.576884]
[1735457502171,9.91672473,196.23,196.2,68.576884]
[1735457504186,7.5872,196.28,196.25,20.0]
[1735457504389,9.91672473,196.26,196.22,44.8]
[1735457504695,9.91672473,196.23,196.17,45.56436142]
[1735457504988,9.91672473,196.23,196.21,64.8]
[1735457505394,9.91672473,196.22,196.21,64.8]
[1735457509798,9.91672473,196.23,196.21,64.8]
[1735457510291,7.5872,196.28,196.21,64.8]
[1735457510507,9.91672473,196.24,196.21,64.8]
[1735457512703,7.9599,196.35,196.22,23.776884]
[1735457512880,9.91672473,196.28,196.25,64.8]
[1735457513999,9.91672473,196.27,196.25,64.8]
[1735457516802,9.91672473,196.28,196.25,64.8]
[1735457519973,9.91672473,196.26,196.25,64.8]
[1735457520175,9.91672473,196.27,196.25,64.8]
[1735457524205,7.9599,196.35,196.25,64.8]
[1735457524507,9.91672473,196.28,196.25,64.8]
[1735457524811,9.91672473,196.27,196.25,64.8]
[1735457526619,9.91672473,196.27,196.25,88.576884]
[1735457526923,7.939,196.4,196.3,64.8]
[1735457527104,9.91672473,196.36,196.31,68.576884]
[1735457527406,9.91672473,196.35,196.31,68.576884]
[1735457527617,9.91672473,196.34,196.33,20.0]
[1735457529217,9.91672473,196.35,196.33,64.8]
[1735457529599,1.5446,196.4,196.34,68.576884]
[1735457529808,9.91672473,196.36,196.34,68.576884]
[1735457530703,9.91672473,196.35,196.34,44.8]
[1735457535733,9.91672473,196.35,196.29,88.576884]
[1735457535897,9.91672473,196.32,196.29,88.576884]
[1735457536332,9.91672473,196.32,196.29,64.8]
[1735457537500,9.91672473,196.31,196.29,64.8]
[1735457537695,9.91672473,196.31,196.29,44.8]
[1735457537910,9.91672473,196.3,196.24,44.8]
[1735457538110,9.91672473,196.29,196.24,44.8]
[1735457538342,9.91672473,196.29,196.27,20.0]
[1735457540946,9.91672473,196.29,196.17,0.76414]
[1735457540947,9.91672473,196.28,196.17,44.8]
[1735457541247,9.91672473,196.23,196.17,54.71672473]
[1735457541409,9.91672473,196.24,196.21,23.776884]
[1735457542020,9.91672473,196.24,196.2,44.8]
[1735457542328,9.91672473,196.28,196.24,23.776884]
[1735457542532,9.91672473,196.28,196.24,68.576884]
[1735457543037,9.91672473,196.29,196.24,68.576884]
[1735457543853,1.5454,196.31,196.24,68.576884]
[1735457544058,9.91672473,196.28,196.24,68.576884]
[1735457546357,9.91672473,196.28,196.27,64.8]
[1735457546652,9.91672473,196.3,196.27,64.8]
[1735457548446,9.91672473,196.29,196.27,64.8]
[1735457548829,9.91672473,196.29,196.28,23.776884]
[1735457549149,9.91672473,196.3,196.28,68.576884]
[1735457549749,6.0109,196.34,196.28,68.576884]
[1735457550057,1.604,196.35,196.28,44.8]
[1735457550226,9.91672473,196.32,196.29,23.776884]
[1735457550438,1.604,196.35,196.29,23.776884]
[1735457550439,9.91672473,196.31,196.29,23.776884]
[1735457551778,1.604,196.35,196.29,23.776884]
[1735457552059,9.91672473,196.32,196.29,68.576884]
[1735457559463,6.2075,196.39,196.29,68.576884]
[1735457559662,9.91672473,196.32,196.29,68.576884]
[1735457560860,6.2075,196.39,196.32,43.776884]
[1735457561067,9.91672473,196.34,196.32,43.776884]
[1735457561367,9.91672473,196.35,196.32,43.776884]
[1735457562154,9.91672473,196.34,196.32,43.776884]
[1735457563170,6.2075,196.39,196.32,88.576884]
[1735457563560,9.91672473,196.34,196.32,88.576884]
[1735457567574,9.91672473,196.35,196.32,88.576884]
[1735457574277,9.91672473,196.36,196.32,88.576884]
[1735457575269,6.2075,196.39,196.32,88.576884]
[1735457575470,9.91672473,196.36,196.32,88.576884]
[1735457583076,9.91672473,196.35,196.32,88.576884]
[1735457583471,9.91672473,196.33,196.29,44.8]
[1735457583661,9.91672473,196.32,196.29,44.8]
[1735457584084,9.91672473,196.32,196.31,20.0]
[1735457584268,9.91672473,196.33,196.31,64.8]
[1735457586158,9.91672473,196.32,196.31,64.8]
[1735457587583,9.91672473,196.32,196.25,44.8]
[1735457587782,9.91672473,196.3,196.25,44.8]
[1735457588085,9.91672473,196.3,196.29,20.0]
[1735457591681,19.5741406,196.39,196.29,20.0]
[1735457591864,11.55114424,196.39,196.29,20.0]
[1735457592065,9.91672473,196.33,196.29,64.8]
[1735457593485,7.716,196.39,196.3,23.776884]
[1735457593687,9.91672473,196.34,196.3,68.576884]
[1735457595188,7.716,196.39,196.3,68.576884]
[1735457595483,9.91672473,196.35,196.3,68.576884]
[1735457596089,7.716,196.39,196.3,68.576884]
[1735457596293,9.91672473,196.35,196.3,68.576884]
[1735457596476,7.716,196.39,196.3,68.576884]
[1735457596671,9.91672473,196.35,196.3,68.576884]
[1735457596877,9.91672473,196.34,196.3,68.576884]
[1735457601696,7.716,196.39,196.3,68.576884]
[1735457601881,9.91672473,196.34,196.3,68.576884]
[1735457607500,9.91672473,196.33,196.32,20.0]
[1735457608200,7.716,196.39,196.32,20.0]
[1735457608376,9.91672473,196.33,196.32,20.0]
[1735457610703,9.91672473,196.33,196.32,64.8]
[1735457619719,9.91672473,196.33,196.32,20.0]
[1735457622732,9.91672473,196.33,196.32,64.8]
[1735457625133,9.91672473,196.33,196.32,44.8]
[1735457625372,7.716,196.39,196.25,45.56402973]
[1735457625513,9.91672473,196.31,196.28,20.0]
[1735457627236,9.91672473,196.32,196.28,64.8]
[1735457641030,9.91672473,196.3,196.28,44.8]
[1735457641345,9.91672473,196.29,196.28,44.8]
[1735457642747,9.91672473,196.3,196.28,44.8]
[1735457646554,9.91672473,196.29,196.26,64.8]
[1735457648153,9.91672473,196.29,196.23,23.776884]
[1735457648154,9.91672473,196.27,196.23,44.8]
[1735457648453,9.91672473,196.26,196.23,44.8]
[1735457649351,9.91672473,196.25,196.23,44.8]
[1735457649552,9.91672473,196.24,196.17,55.48099715]
[1735457650158,9.91672473,196.24,196.21,44.8]
[1735457652134,9.91672473,196.23,196.18,68.576884]
[1735457654949,9.91672473,196.23,196.18,44.8]
[1735457655137,9.91672473,196.22,196.18,44.8]
[1735457655347,9.91672473,196.21,196.18,44.8]
[1735457658146,9.91672473,196.2,196.18,44.8]
[1735457660451,9.91672473,196.19,196.16,20.0]
[1735457662131,9.91672473,196.18,196.14,23.776884]
[1735457662336,9.91672473,196.18,196.14,24.78622786]
[1735457666262,9.91672473,196.17,196.14,45.80934386]
[1735457666455,9.91672473,196.16,196.14,45.80934386]
[1735457667759,9.91672473,196.15,196.14,1.00934386]
[1735457668061,9.91672473,196.15,196.11,1.10642001]
[1735457668368,9.91672473,196.14,196.11,45.90642001]
[1735457668664,9.91672473,196.13,196.11,44.8]
[1735457669065,9.91672473,196.13,196.12,1.10658926]
[1735457669365,9.91672473,196.13,196.12,1.10653284]
[1735457671246,9.91672473,196.13,196.08,1.10653284]
[1735457671545,1.5457,196.18,196.08,45.90653284]
[1735457671546,9.91672473,196.12,196.08,45.90653284]
[1735457672656,9.91672473,196.12,196.09,0.40093719]
[1735457673366,9.38931544,196.11,196.09,45.20093719]
[1735457673571,9.38931544,196.11,196.1,0.13734594]
[1735457673873,9.91672473,196.12,196.1,0.13734594]
[1735457676258,9.91672473,196.11,196.1,0.13734594]
[1735457679982,1.5457,196.18,196.1,0.13734594]
[1735457680163,1.5457,196.18,196.1,23.91422994]
[1735457680364,9.91672473,196.15,196.1,23.91422994]
[1735457680676,9.91672473,196.14,196.1,68.71422994]
[1735457681286,9.91672473,196.13,196.1,68.71422994]
[1735457681591,9.91672473,196.13,196.1,44.93734594]
[1735457682207,9.91672473,196.12,196.1,0.13734594]
[1735457682392,9.91672473,196.12,196.08,20.0]
[1735457682592,9.91672473,196.11,196.08,64.8]
[1735457683088,9.91672473,196.11,196.09,0.13734594]
[1735457685606,1.5457,196.18,196.09,0.13734594]
[1735457685812,9.91672473,196.11,196.09,44.93734594]
[1735457686124,9.91672473,196.12,196.09,44.93734594]
[1735457689404,9.91672473,196.13,196.1,68.576884]
[1735457689600,1.5457,196.18,196.12,23.776884]
[1735457689803,9.91672473,196.16,196.12,68.576884]
[1735457692221,9.91672473,196.15,196.12,68.576884]
[1735457693403,9.91672473,196.16,196.12,68.576884]
[1735457695902,9.91672473,196.17,196.12,68.576884]
[1735457699224,1.6176,196.23,196.15,64.8]
[1735457699425,9.91672473,196.17,196.15,64.8]
[1735457702541,1.6176,196.23,196.15,64.8]
[1735457702744,9.91672473,196.17,196.15,64.8]
[1735457705239,1.6176,196.23,196.15,64.8]
[1735457705423,9.91672473,196.18,196.15,64.8]
[1735457706129,9.91672473,196.19,196.16,68.576884]
[1735457707616,9.91672473,196.18,196.16,68.576884]
[1735457709543,9.91672473,196.19,196.16,68.576884]
[1735457712841,9.91672473,196.17,196.16,44.8]
[1735457715326,9.91672473,196.17,196.1,44.8]
[1735457715526,9.91672473,196.14,196.11,0.13734594]
[1735457715740,9.91672473,196.14,196.11,23.91422994]
[1735457718871,9.91672473,196.15,196.11,23.91422994]
[1735457719030,9.91672473,196.15,196.11,68.71422994]
[1735457721755,9.91672473,196.14,196.11,68.71422994]
[1735457729263,9.91672473,196.15,196.11,68.71422994]
[1735457730837,9.91672473,196.14,196.11,68.71422994]
[1735457733763,9.91672473,196.14,196.11,68.576884]
[1735457735865,9.91672473,196.12,196.11,44.8]
[1735457739870,9.91672473,196.12,196.04,44.8]
[1735457740048,9.91672473,196.08,196.04,44.8]
[1735457740675,9.91672473,196.08,196.05,23.776884]
[1735457741868,9.91672473,196.09,196.05,23.776884]
[1735457745177,9.91672473,196.09,196.05,68.576884]
[1735457745555,6.6195,196.15,196.05,68.576884]
[1735457745752,9.91672473,196.1,196.05,68.576884]
[1735457745948,9.91672473,196.09,196.05,68.576884]
[1735457746165,6.6195,196.15,196.05,68.576884]
[1735457746372,9.91672473,196.09,196.05,68.576884]
[1735457746757,9.91672473,196.08,196.05,68.576884]
[1735457750673,6.6195,196.15,196.09,68.576884]
[1735457750978,9.91672473,196.14,196.09,68.576884]
[1735457752175,1.5868,196.17,196.09,68.576884]
[1735457752387,9.91672473,196.14,196.09,68.576884]
[1735457752599,6.1977,196.2,196.12,64.8]
[1735457752882,9.91672473,196.16,196.13,68.576884]
[1735457757877,1.5163,196.22,196.16,20.0]
[1735457758074,9.91672473,196.21,196.17,68.576884]
[1735457759355,9.91672473,196.2,196.17,68.576884]
[1735457759559,9.91672473,196.19,196.17,68.576884]